[Event "8th Mersin Open 2024"]
[Site "Mersin"]
[Date "2024.11.12"]
[Round "4"]
[White "Alim, Mehmet Emir"]
[Black "Ari, Yigitcan"]
[Result "1-0"]
[ECO "C00"]
[WhiteElo "1532"]
[BlackElo "1520"]
[Annotator "NA RC"]
[PlyCount "45"]
[EventDate "2024.11.10"]
[EventType "swiss"]
[EventCountry "TUR"]
[SourceTitle "playchess.com"]
[Source "ChessBase"]
[SourceQuality "1"]
[TimeControl "5400+30"]

1. e4 {[%emt 0:01:00]} e6 {[%emt 0:01:00]} 2. b3 {[%emt 0:00:30]} d5 {[%emt 0:00:30]} 3. Bb2 {[%emt 0:00:00]} dxe4 {[%emt 0:06:30]} 4. Nc3 {[%emt 0:00:00]} Nf6 {[%emt 0:00:30]} 5. g4 {[%emt 0:00:00]} h6 {[%emt 0:01:30]} 6. Bg2 {[%emt 0:00:00]} Bd6 {[%emt 0:12:30]} 7. Nxe4 {[%emt 0:05:30]} Nxe4 {[%emt 0:00:30]} 8. Bxe4 {[%emt 0:00:30]} e5 {[%emt 0:00:30]} 9. d4 {[%emt 0:00:30]} Qe7 {[%emt 0:05:30]} 10. Qe2 {[%emt 0:01:30]} Nd7 {[%emt 0:05:30]} 11. Nf3 {[%emt 0:02:30]} exd4 {[%emt 0:02:30]} 12. Nxd4 {[%emt 0:02:30]} Nf6 {[%emt 0:01:30]} 13. f3 {[%emt 0:05:30]} Nxe4 {[%emt 0:03:30]} 14. fxe4 {[%emt 0:00:30]} Qh4+ {[%emt 0:00:00]} 15. Kd2 {[%emt 0:04:30]} Bf4+ {[%emt 0:02:00]} 16. Kc3 {[%emt 0:01:30]} Bxg4 {[%emt 0:00:30]} 17. Qb5+ {[%emt 0:00:30]} Ke7 {[%emt 0:01:30]} 18. Ba3+ {[%emt 0:00:30]} Bd6 {[%emt 0:10:30]} 19. Bxd6+ {[%emt 0:00:30]} cxd6 {[%emt 0:00:30]} 20. Qxb7+ {[%emt 0:00:00]} Kf6 {[%emt 0:01:30]} 21. Raf1+ {[%emt 0:00:00]} Kg5 {[%emt 0:01:30]} 22. Qxf7 {[%emt 0:03:30]} Rhf8 {[%emt 0:00:30]} 23. Qxg7+ {[%emt 0:00:30]} 1-0

[Event "8th Mersin Open 2024"]
[Site "Mersin"]
[Date "2024.11.13"]
[Round "5"]
[White "Bernadskiy, Vitaliy"]
[Black "Baradaran Tamadon, Arian"]
[Result "1/2-1/2"]
[ECO "D41"]
[WhiteElo "2543"]
[BlackElo "2323"]
[Annotator "RC"]
[PlyCount "141"]
[EventDate "2024.11.10"]
[EventType "swiss"]
[EventCountry "TUR"]
[SourceTitle "playchess.com"]
[Source "ChessBase"]
[SourceQuality "1"]
[TimeControl "5400+30"]

1. d4 {[%emt 0:01:00]} d5 {[%emt 0:01:00]} 2. c4 {[%emt 0:00:30]} e6 {[%emt 0:00:00]} 3. Nf3 {[%emt 0:00:30]} Nf6 {[%emt 0:00:00]} 4. Nc3 {[%emt 0:00:00]} c5 {[%emt 0:00:00]} 5. cxd5 {[%emt 0:01:00]} cxd4 {[%emt 0:00:00]} 6. Qa4+ {[%emt 0:00:30]} Bd7 {[%emt 0:06:30]} 7. Qxd4 {[%emt 0:00:00]} exd5 {[%emt 0:00:30]} 8. Bg5 {[%emt 0:00:00]} Be7 {[%emt 0:01:30]} 9. e3 {[%emt 0:00:00]} Nc6 {[%emt 0:00:30]} 10. Qd3 {[%emt 0:00:00]} O-O {[%emt 0:08:30]} 11. Be2 {[%emt 0:01:30]} Be6 {[%emt 0:08:30]} 12. O-O {[%emt 0:00:00]} Qd7 {[%emt 0:01:30]} 13. Rfd1 {[%emt 0:03:00]} Rfd8 {[%emt 0:04:30]} 14. Nd4 {[%emt 0:03:30]} Ne5 {[%emt 0:07:30]} 15. Qb5 {[%emt 0:01:30]} a6 {[%emt 0:01:30]} 16. Qxd7 {[%emt 0:03:30]} Nexd7 {[%emt 0:00:00]} 17. e4 {[%emt 0:08:30]} dxe4 {[%emt 0:01:00]} 18. Nxe6 {[%emt 0:00:30]} fxe6 {[%emt 0:00:30]} 19. Nxe4 {[%emt 0:00:30]} Nb6 {[%emt 0:00:30]} 20. Nc3 {[%emt 0:03:30]} h6 {[%emt 0:17:30]} 21. Bh4 {[%emt 0:01:30]} g5 {[%emt 0:01:30]} 22. Bg3 {[%emt 0:00:30]} Nbd5 {[%emt 0:00:30]} 23. Nxd5 {[%emt 0:04:30]} exd5 {[%emt 0:04:30]} 24. Bc7 {[%emt 0:00:30]} Rd7 {[%emt 0:03:30]} 25. Bb6 {[%emt 0:00:30]} Re8 {[%emt 0:01:30]} 26. Bd3 {[%emt 0:02:30]} Kf7 {[%emt 0:05:30]} 27. Bc2 {[%emt 0:05:30]} Rd6 {[%emt 0:02:30]} 28. Bd4 {[%emt 0:02:30]} Rc6 {[%emt 0:03:30]} 29. Bb3 {[%emt 0:02:30]} Bc5 {[%emt 0:00:00]} 30. Kf1 {[%emt 0:03:30]} Bxd4 {[%emt 0:03:27]} 31. Rxd4 {[%emt 0:00:00]} Rc5 {[%emt 0:01:58]} 32. Rad1 {[%emt 0:00:00]} Rd8 {[%emt 0:01:08]} 33. f3 {[%emt 0:00:30]} b5 {[%emt 0:01:21]} 34. R1d2 {[%emt 0:02:30]} a5 {[%emt 0:01:05]} 35. a3 {[%emt 0:00:00]} Rc1+ {[%emt 0:04:54]} 36. Kf2 {[%emt 0:00:00]} Ke6 {[%emt 0:00:00]} 37. h4 {[%emt 0:01:30]} Ke5 {[%emt 0:04:34]} 38. hxg5 {[%emt 0:01:30]} hxg5 {[%emt 0:00:02]} 39. R4d3 {[%emt 0:00:00]} a4 {[%emt 0:00:55]} 40. Bc2 {[%emt 0:04:00]} d4 {[%emt 0:02:21]} 41. b3 {[%emt 0:00:00]} Rc8 {[%emt 0:01:28]} 42. Bd1 {[%emt 0:00:00]} axb3 {[%emt 0:00:22]} 43. Rxb3 {[%emt 0:00:30]} R8c5 {[%emt 0:00:58]} 44. Be2 {[%emt 0:00:30]} Nd5 {[%emt 0:00:33]} 45. Rxb5 {[%emt 0:02:30]} Rxb5 {[%emt 0:00:42]} 46. Bxb5 {[%emt 0:00:30]} Nc3 {[%emt 0:00:00]} 47. a4 {[%emt 0:00:30]} Ra1 {[%emt 0:01:19]} 48. Kg3 {[%emt 0:00:00]} Nxa4 {[%emt 0:00:23]} 49. Kg4 {[%emt 0:01:00]} Nc3 {[%emt 0:00:06]} 50. Bd7 {[%emt 0:02:30]} Ra7 {[%emt 0:00:10]} 51. Bf5 {[%emt 0:00:30]} Kf6 {[%emt 0:02:41]} 52. Rb2 {[%emt 0:01:30]} Nd5 {[%emt 0:00:30]} 53. Be4 {[%emt 0:00:30]} Ne3+ {[%emt 0:00:00]} 54. Kh5 {[%emt 0:05:30]} Rg7 {[%emt 0:01:18]} 55. Rb6+ {[%emt 0:00:30]} Ke5 {[%emt 0:00:30]} 56. g3 {[%emt 0:00:30]} Nf1 {[%emt 0:00:15]} 57. Rb5+ {[%emt 0:00:30]} Kf6 {[%emt 0:00:49]} 58. Kh6 {[%emt 0:00:30]} Rg8 {[%emt 0:00:00]} 59. Rb6+ {[%emt 0:03:30]} Ke5 {[%emt 0:01:24]} 60. Kh7 {[%emt 0:00:30]} Rd8 {[%emt 0:00:00]} 61. Rb5+ {[%emt 0:00:30]} Kf6 {[%emt 0:00:00]} 62. Rf5+ {[%emt 0:00:00]} Ke6 {[%emt 0:00:20]} 63. Bd3 {[%emt 0:00:00]} Nxg3 {[%emt 0:01:03]} 64. Rxg5 {[%emt 0:00:30]} Nh1 {[%emt 0:00:00]} 65. Kg7 {[%emt 0:01:30]} Nf2 {[%emt 0:01:04]} 66. Bc4+ {[%emt 0:00:30]} Kd6 {[%emt 0:00:31]} 67. f4 {[%emt 0:00:30]} d3 {[%emt 0:00:21]} 68. Rd5+ {[%emt 0:01:30]} Kc7 {[%emt 0:00:30]} 69. Bxd3 {[%emt 0:00:30]} Nxd3 {[%emt 0:00:30]} 70. f5 {[%emt 0:00:30]} Ne5 {[%emt 0:00:30]} 71. f6 {[%emt 0:00:00]} 1/2-1/2

[Event "8th Mersin Open 2024"]
[Site "Mersin"]
[Date "2024.11.13"]
[Round "5"]
[White "Ebrahimi Herab, Hamidreza"]
[Black "Annaberdiyev, Meylis"]
[Result "1/2-1/2"]
[ECO "E74"]
[WhiteElo "2386"]
[BlackElo "2443"]
[Annotator "RC"]
[PlyCount "121"]
[EventDate "2024.11.10"]
[EventType "swiss"]
[EventCountry "TUR"]
[SourceTitle "playchess.com"]
[Source "ChessBase"]
[SourceQuality "1"]
[TimeControl "5400+30"]

1. d4 {[%emt 0:08:00]} Nf6 {[%emt 0:01:00]} 2. c4 {[%emt 0:00:30]} g6 {[%emt 0:00:30]} 3. Nc3 {[%emt 0:00:30]} Bg7 {[%emt 0:00:00]} 4. e4 {[%emt 0:00:30]} d6 {[%emt 0:00:00]} 5. Be2 {[%emt 0:00:30]} O-O {[%emt 0:00:00]} 6. Bg5 {[%emt 0:00:30]} c5 {[%emt 0:00:00]} 7. d5 {[%emt 0:00:00]} h6 {[%emt 0:00:30]} 8. Bf4 {[%emt 0:01:00]} e6 {[%emt 0:00:00]} 9. Qd2 {[%emt 0:01:30]} exd5 {[%emt 0:00:00]} 10. exd5 {[%emt 0:00:30]} g5 {[%emt 0:00:30]} 11. Be3 {[%emt 0:01:30]} Ng4 {[%emt 0:00:30]} 12. Bxg4 {[%emt 0:02:30]} Bxg4 {[%emt 0:00:30]} 13. h3 {[%emt 0:00:30]} Bf5 {[%emt 0:01:30]} 14. h4 {[%emt 0:00:30]} f6 {[%emt 0:00:30]} 15. f4 {[%emt 0:09:30]} Nd7 {[%emt 0:09:30]} 16. Nge2 {[%emt 0:05:30]} Qe7 {[%emt 0:25:30]} 17. O-O {[%emt 0:13:30]} Rae8 {[%emt 0:10:30]} 18. Bf2 {[%emt 0:03:30]} gxf4 {[%emt 0:01:30]} 19. Nxf4 {[%emt 0:00:30]} Ne5 {[%emt 0:00:30]} 20. b3 {[%emt 0:00:30]} Qd7 {[%emt 0:03:30]} 21. Rae1 {[%emt 0:03:30]} a6 {[%emt 0:01:30]} 22. a4 {[%emt 0:02:30]} Ng4 {[%emt 0:00:30]} 23. Bg3 {[%emt 0:01:30]} Rxe1 {[%emt 0:01:30]} 24. Rxe1 {[%emt 0:00:30]} Re8 {[%emt 0:00:00]} 25. Ne6 {[%emt 0:02:30]} Ne5 {[%emt 0:01:00]} 26. Bxe5 {[%emt 0:04:30]} fxe5 {[%emt 0:00:30]} 27. Ne4 {[%emt 0:00:30]} b6 {[%emt 0:09:30]} 28. Qxh6 {[%emt 0:07:30]} Bxh6 {[%emt 0:04:30]} 29. Nf6+ {[%emt 0:00:00]} Kf7 {[%emt 0:00:30]} 30. Nxd7 {[%emt 0:00:00]} Ke7 {[%emt 0:00:00]} 31. Nxb6 {[%emt 0:01:30]} Bd2 {[%emt 0:06:00]} 32. Rf1 {[%emt 0:01:30]} Bg4 {[%emt 0:03:30]} 33. Ng5 {[%emt 0:09:30]} Be3+ {[%emt 0:05:06]} 34. Kh1 {[%emt 0:01:18]} Bxg5 {[%emt 0:01:28]} 35. hxg5 {[%emt 0:00:30]} Rg8 {[%emt 0:00:00]} 36. a5 {[%emt 0:00:09]} Rxg5 {[%emt 0:03:02]} 37. Re1 {[%emt 0:00:56]} Bf5 {[%emt 0:01:28]} 38. Re3 {[%emt 0:01:59]} Kf6 {[%emt 0:00:30]} 39. Na4 {[%emt 0:00:30]} e4 {[%emt 0:00:00]} 40. Kg1 {[%emt 0:15:38]} Ke5 {[%emt 0:01:38]} 41. Kf2 {[%emt 0:00:09]} Kd4 {[%emt 0:06:21]} 42. Re2 {[%emt 0:00:33]} Bg6 {[%emt 0:00:30]} 43. Rd2+ {[%emt 0:00:12]} Ke5 {[%emt 0:00:00]} 44. b4 {[%emt 0:01:33]} Kf4 {[%emt 0:01:05]} 45. Re2 {[%emt 0:02:05]} cxb4 {[%emt 0:00:30]} 46. c5 {[%emt 0:00:00]} Rxd5 {[%emt 0:00:41]} 47. c6 {[%emt 0:00:01]} Bf5 {[%emt 0:01:53]} 48. g3+ {[%emt 0:00:58]} Ke5 {[%emt 0:00:30]} 49. Nb6 {[%emt 0:00:01]} Rd3 {[%emt 0:00:22]} 50. Rb2 {[%emt 0:00:40]} Rf3+ {[%emt 0:01:58]} 51. Ke2 {[%emt 0:00:10]} Rc3 {[%emt 0:00:14]} 52. Rxb4 {[%emt 0:00:11]} Rc2+ {[%emt 0:02:25]} 53. Ke3 {[%emt 0:01:33]} Rxc6 {[%emt 0:00:07]} 54. Rc4 {[%emt 0:00:34]} Rc5 {[%emt 0:01:35]} 55. g4 {[%emt 0:00:04]} Bxg4 {[%emt 0:00:43]} 56. Rxe4+ {[%emt 0:00:30]} Kf5 {[%emt 0:00:00]} 57. Rd4 {[%emt 0:00:29]} Re5+ {[%emt 0:00:08]} 58. Kd2 {[%emt 0:00:00]} Rxa5 {[%emt 0:00:32]} 59. Rxd6 {[%emt 0:00:13]} Ke4 {[%emt 0:00:15]} 60. Nc4 {[%emt 0:00:00]} Ra1 {[%emt 0:00:40]} 61. Kc3 {[%emt 0:00:00]} 1/2-1/2

[Event "8th Mersin Open 2024"]
[Site "Mersin"]
[Date "2024.11.13"]
[Round "5"]
[White "Schekachikhin, Maksim"]
[Black "Zerey, Demhat"]
[Result "1-0"]
[ECO "C02"]
[WhiteElo "2353"]
[BlackElo "2194"]
[Annotator "RC"]
[PlyCount "61"]
[EventDate "2024.11.10"]
[EventType "swiss"]
[EventCountry "TUR"]
[SourceTitle "playchess.com"]
[Source "ChessBase"]
[SourceQuality "1"]
[TimeControl "5400+30"]

1. e4 {[%emt 0:01:00]} e6 {[%emt 0:04:00]} 2. d4 {[%emt 0:01:30]} d5 {[%emt 0:00:00]} 3. e5 {[%emt 0:01:30]} c5 {[%emt 0:01:00]} 4. c3 {[%emt 0:00:30]} Nc6 {[%emt 0:00:30]} 5. Nf3 {[%emt 0:00:30]} Qb6 {[%emt 0:00:00]} 6. Bd3 {[%emt 0:00:30]} cxd4 {[%emt 0:01:00]} 7. O-O {[%emt 0:03:30]} Bd7 {[%emt 0:04:30]} 8. Re1 {[%emt 0:00:30]} Nge7 {[%emt 0:13:30]} 9. h4 {[%emt 0:02:30]} h6 {[%emt 0:07:30]} 10. Nbd2 {[%emt 0:04:30]} Nc8 {[%emt 0:12:30]} 11. Nb3 {[%emt 0:08:30]} dxc3 {[%emt 0:01:30]} 12. bxc3 {[%emt 0:00:30]} Qc7 {[%emt 0:03:30]} 13. Rb1 {[%emt 0:36:30]} Nb6 {[%emt 0:08:30]} 14. Qe2 {[%emt 0:00:30]} Na4 {[%emt 0:04:30]} 15. Bd2 {[%emt 0:01:30]} Nc5 {[%emt 0:05:30]} 16. Nxc5 {[%emt 0:03:30]} Bxc5 {[%emt 0:00:30]} 17. Nd4 {[%emt 0:00:30]} Nxd4 {[%emt 0:08:30]} 18. cxd4 {[%emt 0:00:30]} Bxd4 {[%emt 0:00:30]} 19. Bb4 {[%emt 0:00:30]} Bc5 {[%emt 0:03:25]} 20. Bxc5 {[%emt 0:05:30]} Qxc5 {[%emt 0:00:26]} 21. Rec1 {[%emt 0:00:30]} Qa3 {[%emt 0:00:38]} 22. Bb5 {[%emt 0:01:30]} Qe7 {[%emt 0:06:13]} 23. Rc7 {[%emt 0:01:30]} Rd8 {[%emt 0:00:04]} 24. Bxd7+ {[%emt 0:08:08]} Rxd7 {[%emt 0:00:09]} 25. Qb5 {[%emt 0:08:46]} Kd8 {[%emt 0:00:19]} 26. Rxb7 {[%emt 0:00:14]} Rxb7 {[%emt 0:01:31]} 27. Qxb7 {[%emt 0:00:04]} Qxb7 {[%emt 0:01:05]} 28. Rxb7 {[%emt 0:00:04]} Rf8 {[%emt 0:01:48]} 29. Rxa7 {[%emt 0:00:30]} f6 {[%emt 0:00:30]} 30. a4 {[%emt 0:00:30]} Re8 {[%emt 0:00:30]} 31. a5 {[%emt 0:00:06]} 1-0

[Event "8th Mersin Open 2024"]
[Site "Mersin"]
[Date "2024.11.13"]
[Round "5"]
[White "Jinan Jomon"]
[Black "Mahmudzade, Yunis"]
[Result "1-0"]
[ECO "C02"]
[WhiteElo "2342"]
[BlackElo "2065"]
[Annotator "RC"]
[PlyCount "109"]
[EventDate "2024.11.10"]
[EventType "swiss"]
[EventCountry "TUR"]
[SourceTitle "playchess.com"]
[Source "ChessBase"]
[SourceQuality "1"]
[TimeControl "5400+30"]

1. e4 {[%emt 0:01:00]} e6 {[%emt 0:01:00]} 2. d4 {[%emt 0:00:30]} d5 {[%emt 0:00:30]} 3. e5 {[%emt 0:00:00]} c5 {[%emt 0:00:30]} 4. c3 {[%emt 0:00:00]} Nc6 {[%emt 0:00:30]} 5. Nf3 {[%emt 0:00:00]} Qb6 {[%emt 0:00:00]} 6. Bd3 {[%emt 0:00:00]} Bd7 {[%emt 0:00:00]} 7. O-O {[%emt 0:00:30]} cxd4 {[%emt 0:01:30]} 8. Re1 {[%emt 0:00:00]} Rc8 {[%emt 0:01:30]} 9. Nbd2 {[%emt 0:05:00]} dxc3 {[%emt 0:05:30]} 10. bxc3 {[%emt 0:00:30]} Bc5 {[%emt 0:00:00]} 11. Qe2 {[%emt 0:14:30]} Qc7 {[%emt 0:10:00]} 12. Nb3 {[%emt 0:08:30]} Be7 {[%emt 0:00:30]} 13. Bf4 {[%emt 0:11:30]} Na5 {[%emt 0:01:30]} 14. Nfd4 {[%emt 0:05:30]} Nc4 {[%emt 0:03:30]} 15. Rab1 {[%emt 0:15:30]} Na3 {[%emt 0:05:30]} 16. Rbc1 {[%emt 0:01:30]} a6 {[%emt 0:00:30]} 17. g4 {[%emt 0:04:30]} g6 {[%emt 0:06:30]} 18. Bg3 {[%emt 0:06:30]} h5 {[%emt 0:03:30]} 19. h3 {[%emt 0:00:00]} hxg4 {[%emt 0:00:30]} 20. hxg4 {[%emt 0:00:00]} Bh4 {[%emt 0:13:30]} 21. Bf4 {[%emt 0:04:30]} Qd8 {[%emt 0:01:30]} 22. Nf3 {[%emt 0:00:30]} Nh6 {[%emt 0:02:30]} 23. g5 {[%emt 0:03:44]} Nf5 {[%emt 0:07:30]} 24. Kg2 {[%emt 0:03:49]} Nb5 {[%emt 0:07:30]} 25. Bxf5 {[%emt 0:05:35]} gxf5 {[%emt 0:00:00]} 26. Nbd4 {[%emt 0:05:47]} Nxc3 {[%emt 0:00:00]} 27. Qe3 {[%emt 0:01:19]} Ne4 {[%emt 0:00:30]} 28. Rh1 {[%emt 0:00:12]} Rxc1 {[%emt 0:01:30]} 29. Qxc1 {[%emt 0:00:02]} Nxf2 {[%emt 0:00:30]} 30. Rxh4 {[%emt 0:00:47]} Rxh4 {[%emt 0:00:00]} 31. Nxh4 {[%emt 0:00:21]} Nd3 {[%emt 0:00:00]} 32. Qe3 {[%emt 0:00:00]} Nxf4+ {[%emt 0:00:30]} 33. Qxf4 {[%emt 0:00:04]} Qa5 {[%emt 0:00:30]} 34. Qf2 {[%emt 0:00:30]} Kd8 {[%emt 0:00:30]} 35. Kg3 {[%emt 0:00:30]} Qa3+ {[%emt 0:00:30]} 36. Nhf3 {[%emt 0:00:30]} Qc3 {[%emt 0:00:30]} 37. Qh2 {[%emt 0:00:30]} b5 {[%emt 0:00:30]} 38. Kf4 {[%emt 0:00:30]} Qd3 {[%emt 0:00:30]} 39. Qh8+ {[%emt 0:00:30]} Ke7 {[%emt 0:00:30]} 40. Qf6+ {[%emt 0:00:30]} Ke8 {[%emt 0:05:30]} 41. Qh8+ {[%emt 0:03:59]} Ke7 {[%emt 0:00:30]} 42. Qb8 {[%emt 0:00:08]} a5 {[%emt 0:01:30]} 43. Qc7 {[%emt 0:00:31]} Qc4 {[%emt 0:00:30]} 44. Qxa5 {[%emt 0:00:13]} b4 {[%emt 0:00:30]} 45. Kg3 {[%emt 0:00:45]} Qc3 {[%emt 0:00:30]} 46. Qb6 {[%emt 0:01:13]} Qc4 {[%emt 0:02:30]} 47. Qa7 {[%emt 0:00:39]} Qc8 {[%emt 0:00:30]} 48. Nb3 {[%emt 0:00:41]} Kf8 {[%emt 0:00:39]} 49. Nc5 {[%emt 0:00:23]} Be8 {[%emt 0:00:21]} 50. Qb6 {[%emt 0:00:14]} Kg7 {[%emt 0:01:06]} 51. Qxb4 {[%emt 0:00:30]} Qa8 {[%emt 0:00:00]} 52. a4 {[%emt 0:00:00]} Qd8 {[%emt 0:00:43]} 53. Nb7 {[%emt 0:01:26]} Qb8 {[%emt 0:00:11]} 54. Qe7 {[%emt 0:00:05]} Bxa4 {[%emt 0:00:30]} 55. Nd8 {[%emt 0:00:11]} 1-0

[Event "8th Mersin Open 2024"]
[Site "Mersin"]
[Date "2024.11.13"]
[Round "5"]
[White "Aliyev, Ravan"]
[Black "Lobanov, Sergei"]
[Result "0-1"]
[ECO "D38"]
[WhiteElo "2338"]
[BlackElo "2503"]
[Annotator "TA"]
[PlyCount "140"]
[EventDate "2024.11.10"]
[EventType "swiss"]
[EventCountry "TUR"]
[SourceTitle "playchess.com"]
[Source "ChessBase"]
[SourceQuality "1"]
[TimeControl "5400+30"]

{[%evp 26,140,9,5,9,8,7,0,35,0,0,0,-4,-25,-18,-23,-25,-17,-23,-25,-31,-33,-26,-24,-29,-54,-56,-57,-12,-19,-18,-20,-18,-31,-19,-26,-19,-56,-50,-59,-14,-14,0,0,0,0,0,0,0,0,0,0,0,0,0,0,0,0,0,0,0,0,0,0,0,0,0,0,0,0,0,0,0,0,0,0,0,0,0,0,0,0,0,0,0,0,0,0,0,0,0,-1463,-1463,-1463,-1463,-1456,-1456,-1463,-1456,-1456,-1456,-1448,-1434,-1441,-1434,-1434,-1434,-1434,-1434,-1434,-1434,-1434,-1427,-1434,-1427,-1379,-951]} 1. c4 {[%emt 0:01:00]} e6 {[%emt 0:01:00]} 2. Nc3 {[%emt 0:00:30]} d5 {[%emt 0:00:30]} 3. d4 {[%emt 0:00:30]} Nf6 {[%emt 0:00:30]} 4. Nf3 {[%emt 0:01:30]} Bb4 {[%emt 0:00:30]} 5. Bg5 {[%emt 0:00:30]} h6 {[%emt 0:00:00]} 6. Bxf6 {[%emt 0:00:30]} Qxf6 {[%emt 0:00:00]} 7. e3 {[%emt 0:00:00]} O-O {[%emt 0:02:30]} 8. Rc1 {[%emt 0:00:00]} Nc6 {[%emt 0:00:30]} 9. a3 {[%emt 0:11:30] D38: Queen's Gambit Declined: Ragozin Defence (4 Nf3 Bb4).} Bxc3+ {[%emt 0:00:30]} 10. Rxc3 {[%emt 0:00:00]} dxc4 {[%emt 0:00:30]} 11. Bxc4 {[%emt 0:00:00]} e5 {[%emt 0:00:00]} 12. dxe5 {[%emt 0:09:30]} Nxe5 {[%emt 0:00:00]} 13. Nxe5 {[%emt 0:00:30]} Qxe5 {[%emt 0:00:30]} 14. O-O {[%emt 0:00:30]} Bf5 {[%emt 0:04:30]} 15. Qb3 {[%emt 0:04:30]} b6 {[%emt 0:05:30]} 16. Rd1 {[%emt 0:03:30]} Qe7 {[%emt 0:01:30]} 17. Rcc1 $146 {[%emt 0:10:30]} ({Predecessor:} 17. e4 Bg6 18. f3 Rad8 19. Rcd3 c6 20. Qb4 c5 21. Qd2 Rxd3 22. Qxd3 Kh7 23. Qd6 {½-½ Nesterov,A (2497)-Harikrishna,P (2646) Wch Rapid Almaty 2022 (9)}) 17... Rad8 {[%emt 0:05:30]} 18. Bd5 {[%emt 0:13:30]} Rd6 {[%emt 0:07:30]} 19. f3 {[%emt 0:12:30]} Rfd8 {[%emt 0:02:30]} 20. e4 {[%emt 0:01:30]} Be6 {[%emt 0:01:30]} 21. Bxe6 {[%emt 0:01:30]} Qxe6 {[%emt 0:00:30]} 22. Rxd6 {[%emt 0:01:30]} Qxd6 {[%emt 0:00:30]} 23. Qc3 {[%emt 0:03:30]} c5 {[%emt 0:03:30]} 24. b4 {[%emt 0:02:30]} Rc8 {[%emt 0:01:30]} 25. bxc5 {[%emt 0:02:18]} Rxc5 {[%emt 0:01:30]} 26. Qe3 {[%emt 0:07:16]} Rxc1+ {[%emt 0:06:30]} 27. Qxc1 {[%emt 0:00:30]} Qd4+ {[%emt 0:00:00]} 28. Kf1 $1 {[%emt 0:00:36]} g6 {[%emt 0:03:00]} 29. Ke2 {[%emt 0:00:14]} Kg7 {[%emt 0:03:30]} 30. h3 {[%emt 0:01:17]} a5 {[%emt 0:10:30]} 31. g4 {[%emt 0:07:51]} g5 {[%emt 0:06:30]} 32. Qb1 {[%emt 0:02:08]} Kf8 {[%emt 0:09:30]} 33. Qb5 {[%emt 0:00:31]} Ke7 {[%emt 0:02:30]} 34. a4 {[%emt 0:00:30]} Kd6 {[%emt 0:00:30]} 35. Qb3 {[%emt 0:00:30]} f6 {[%emt 0:00:30]} 36. Qb5 {[%emt 0:00:00]} Qc5 {[%emt 0:02:30]} 37. Qb3 {[%emt 0:03:17]} Ke5 {[%emt 0:00:36]} 38. Qb2+ {[%emt 0:00:01]} Qd4 {[%emt 0:02:37]} 39. Qc2 {[%emt 0:00:01]} Kd6 {[%emt 0:03:01]} 40. Qb3 {[%emt 0:00:10]} Qc5 {[%emt 0:02:19]} 41. Kd3 {[%emt 0:01:19]} Ke7 {[%emt 0:00:09]} 42. Ke2 {[%emt 0:00:59]} Kd6 {[%emt 0:00:30]} 43. Kd3 {[%emt 0:00:00]} Kc6 {[%emt 0:02:58]} 44. Qf7 {[%emt 0:00:59]} Qa3+ {[%emt 0:01:58]} 45. Ke2 {[%emt 0:00:07]} Qb2+ {[%emt 0:00:38]} 46. Kd3 {[%emt 0:00:11]} Qb1+ {[%emt 0:00:00]} 47. Kd4 {[%emt 0:01:13]} Qd1+ {[%emt 0:01:16]} 48. Ke3 {[%emt 0:00:03]} Qd6 {[%emt 0:03:43]} 49. Qe8+ {[%emt 0:00:42]} Qd7 {[%emt 0:00:27]} 50. Qf8 {[%emt 0:01:07]} Qe6 {[%emt 0:00:04]} 51. Qd8 {[%emt 0:00:06]} Qb3+ {[%emt 0:01:42]} 52. Ke2 {[%emt 0:00:22]} Qc2+ {[%emt 0:00:48]} (52... Qxa4 $2 {perishes.} 53. Qe8+ (53. Qxf6+ Kb5 $11) 53... Kc5 54. Qxa4 $18) 53. Ke3 {[%emt 0:00:11]} Qc3+ {[%emt 0:00:00]} 54. Ke2 {[%emt 0:00:20]} Kc5 {[%emt 0:01:28]} 55. Qc7+ {[%emt 0:01:26]} Kb4 {[%emt 0:00:01]} 56. Qxc3+ $1 {[%emt 0:00:21]} Kxc3 {[%emt 0:00:30]} 57. f4 $1 {[%emt 0:00:00]} gxf4 {[%emt 0:02:23]} 58. e5 $2 {[%emt 0:01:16][%mdl 8192]} (58. Kf3 $11) 58... fxe5 $19 {[%emt 0:00:30]} 59. h4 {[%emt 0:00:00]} e4 $1 {[%emt 0:00:36]} 60. g5 {[%emt 0:00:00]} hxg5 {[%emt 0:00:11]} 61. hxg5 {[%emt 0:00:25]} f3+ $1 {[%emt 0:00:16]} ({Don't blunder} 61... Kd4 $2 62. g6 $18) 62. Ke3 {[%emt 0:01:27] [#]} f2 $1 {[%emt 0:00:30]} 63. Kxf2 {[%emt 0:00:30] [#]} Kd2 $1 {[%emt 0:00:00]} 64. g6 {[%emt 0:00:00]} e3+ {[%emt 0:00:06]} 65. Kf3 {[%emt 0:00:18]} e2 {[%emt 0:00:30]} 66. g7 {[%emt 0:00:30]} e1=Q {[%emt 0:00:00]} (66... e1=R $2 {too greedy.} 67. g8=Q Re3+ 68. Kf4 $18) 67. g8=Q {[%emt 0:00:00]} Qe3+ {[%emt 0:01:31]} 68. Kg2 {[%emt 0:00:00]} Qe4+ {[%emt 0:00:00]} 69. Kf1 {[%emt 0:00:00]} Kc3 {[%emt 0:01:30]} 70. Qb8 {[%emt 0:01:00]} Qf3+ {[%emt 0:00:29]} 0-1

[Event "8th Mersin Open 2024"]
[Site "Mersin"]
[Date "2024.11.13"]
[Round "5"]
[White "Mammadova, Gulnar"]
[Black "Yermolinsky, Alex"]
[Result "1/2-1/2"]
[ECO "B50"]
[WhiteElo "2328"]
[BlackElo "2417"]
[Annotator "RC"]
[PlyCount "54"]
[EventDate "2024.11.10"]
[EventType "swiss"]
[EventCountry "TUR"]
[SourceTitle "playchess.com"]
[Source "ChessBase"]
[SourceQuality "1"]
[TimeControl "5400+30"]

1. e4 {[%emt 0:01:00]} c5 {[%emt 0:01:00]} 2. Nf3 {[%emt 0:00:00]} d6 {[%emt 0:00:30]} 3. Bb5+ {[%emt 0:00:00]} Bd7 {[%emt 0:03:30]} 4. Bxd7+ {[%emt 0:00:30]} Nxd7 {[%emt 0:06:30]} 5. O-O {[%emt 0:00:30]} Ngf6 {[%emt 0:00:00]} 6. Qe2 {[%emt 0:00:00]} e6 {[%emt 0:01:00]} 7. b3 {[%emt 0:00:00]} Be7 {[%emt 0:00:30]} 8. c4 {[%emt 0:00:30]} O-O {[%emt 0:02:30]} 9. Nc3 {[%emt 0:00:30]} Ne5 {[%emt 0:10:30]} 10. Rd1 {[%emt 0:08:30]} Qb6 {[%emt 0:01:30]} 11. Bb2 {[%emt 0:03:30]} a6 {[%emt 0:05:30]} 12. Ne1 {[%emt 0:05:30]} Nc6 {[%emt 0:08:30]} 13. Nc2 {[%emt 0:02:30]} Nd4 {[%emt 0:06:30]} 14. Qd3 {[%emt 0:00:30]} Nxc2 {[%emt 0:00:30]} 15. Qxc2 {[%emt 0:00:00]} Rac8 {[%emt 0:06:30]} 16. Ne2 {[%emt 0:04:00]} d5 {[%emt 0:03:30]} 17. cxd5 {[%emt 0:05:30]} exd5 {[%emt 0:00:00]} 18. e5 {[%emt 0:13:30]} Nd7 {[%emt 0:00:00]} 19. Qf5 {[%emt 0:03:30]} Qe6 {[%emt 0:01:30]} 20. Qxe6 {[%emt 0:08:30]} fxe6 {[%emt 0:00:00]} 21. f4 {[%emt 0:00:30]} d4 {[%emt 0:01:00]} 22. d3 {[%emt 0:00:30]} Nb6 {[%emt 0:00:30]} 23. Bc1 {[%emt 0:03:30]} Nd5 {[%emt 0:03:30]} 24. Bd2 {[%emt 0:00:30]} b5 {[%emt 0:00:30]} 25. Rdc1 {[%emt 0:01:30]} h6 {[%emt 0:05:30]} 26. a4 {[%emt 0:01:30]} b4 {[%emt 0:00:00]} 27. Rf1 {[%emt 0:02:30]} Rf7 {[%emt 0:03:00]} 1/2-1/2